Cogmind - Beta 14 @@@ ROGUE MODE // 2024.09.09 @ 18:13:02 Player: Null_error Result: Self-destructed Performance ------------- Evolutions (2) 1000 Regions Visited (3) 600 Robots Destroyed (26) 130 Value Destroyed (465) 465 Prototype IDs (0) 0 Alien Tech Used (0) 0 Bonus (0) 0 TOTAL SCORE: 2195 Bonus ------- None Cogmind --------- Core Integrity 376/550 Matter 277/450 Energy 100/100 System Corruption 0% Temperature Cool (0) Movement Core (400) Ox7 Location -8/Materials Parts ------- > --- POWER (1) -------- (None) > --- PROPULSION (4) --- (None) > --- UTILITY (4) ------ Large Storage Unit Compact Matter Pod Sensor Array Targeting Computer > --- WEAPON (2) ------- (None) > --- INVENTORY (15) --- Light Ion Engine Light Ion Engine Light Ion Engine Light Ion Engine Aluminum Leg Aluminum Leg Aluminum Leg Aluminum Leg Hover Unit Hover Unit Improved Heat Sink Small Storage Unit Targeting Computer Light Armor Plating Grenade Launcher Peak State ------------ > --- POWER ------------ Improved Ion Engine > --- PROPULSION ------- Compact Wheel Compact Wheel Armored Wheel > --- UTILITY ---------- Large Storage Unit Sensor Array Targeting Computer Hacking Suite > --- WEAPON ----------- Pulse Rifle > --- INVENTORY -------- Light Ion Engine Light Ion Engine Light Ion Engine Light Ion Engine Aluminum Leg Aluminum Leg Aluminum Leg Aluminum Leg Hover Unit Hover Unit Small Storage Unit Targeting Computer Light Armor Plating Grenade Launcher [Rating: 16] Favorites ----------- Power Light Ion Engine Engine Light Ion Engine Propulsion Wheel Wheel Wheel Utility Large Storage Unit Device Improved Terrain Scanner Storage Large Storage Unit Processor Targeting Computer Hackware Hacking Suite Weapon Medium Laser Energy Gun Medium Laser Launcher Rocket Launcher Build | -11 -10 -9 -8 ------- Run | Yrd Mat Mat Mat Slots Evolved 4 | . . 2 2 Power . | . . . . Propulsion 2 | . . 1 1 Utility 2 | . . 1 1 Weapon . | . . . . Parts Attached 31 | 10 9 6 6 Power 6 | 1 3 1 1 Engine 6 | 1 3 1 1 Core . | . . . . Reactor . | . . . . Propulsion 12 | 5 4 2 1 Treads . | . . . . Leg . | . . . . Wheel 12 | 5 4 2 1 Hover . | . . . . Flight . | . . . . Utility 9 | 2 2 2 3 Device 4 | 1 1 1 1 Storage 3 | 1 1 . 1 Processor 1 | . . . 1 Hackware 1 | . . 1 . Protection . | . . . . Artifact . | . . . . Weapon 4 | 2 . 1 1 Energy Gun 3 | 2 . . 1 Energy Cannon . | . . . . Ballistic Gun . | . . . . Ballistic Cannon . | . . . . Launcher 1 | . . 1 . Special Weapon . | . . . . Impact Weapon . | . . . . Slashing Weapon . | . . . . Piercing Weapon . | . . . . Special Melee Weapon . | . . . . Unidentified Prototypes . | . . . . Parts Lost 12 | . 1 4 7 Power 2 | . . . 2 Propulsion 5 | . 1 1 3 Utility 1 | . . . 1 Weapon 4 | . . 3 1 Highest Loss Streak 7 | . 1 2 7 To Critical Strikes . | . . . . Average Slot Usage (%) 93 | . 99 92 73 Engine 11 | . 14 11 6 Wheel 29 | . 27 32 23 Device 12 | . 14 11 9 Storage 12 | . 14 11 10 Hackware 4 | . . 9 7 Energy Gun 18 | . 28 10 7 Launcher 2 | . . 6 . Peak Build Rating 16 | 9 10 15 16 Average Rating 11 | 6 9 13 14 On Entrance 7 | . 9 8 11 Naked Turns . | . . . . Heaviest Build 34 | 13 30 34 31 Greatest Support 44 | 32 20 38 44 Greatest Overweight (x) 7 | . 2 1 7 Average Overweight (x) . | . . . . Largest Inventory Capacity 15 | 8 15 15 15 Average Capacity 14 | 7 14 15 15 Most Carried 15 | 6 15 15 15 Average Carried 11 | 3 10 14 14 Final Capacity 15 | 8 15 15 15 Final Carried 15 | 6 15 15 15 Class Distribution -------------------- 76% | Mutant 23% | Scavenger-Mutant Dominant Class ---------------- Mutant | -10/Materials Mutant | -9/Materials Mutant | -8/Materials Resources | -11 -10 -9 -8 ----------- Run | Yrd Mat Mat Mat Matter Collected 492 | 300 80 87 25 Remotely . | . . . . Salvage Created 764 | 260 320 138 46 Parts 44 | 13 19 8 4 Haulers Intercepted . | . . . . Recyclers Shooed 1 | . 1 . . Parts Field Recycled . | . . . . Retrieved Matter . | . . . . Parts Self-Destructed . | . . . . Prevented . | . . . . Kills | -11 -10 -9 -8 ------- Run | Yrd Mat Mat Mat Combat Hostiles Destroyed 11 | . 5 3 3 Guns 9 | . 5 1 3 AOE 2 | . . 2 . Classes Destroyed 8 | 3 3 1 1 Worker 5 | 2 2 1 . Tunneler 4 | 4 . . . Recycler 1 | 1 . . . Operator 2 | . 1 1 . Watcher 3 | . 2 1 . Swarmer 3 | . . . 3 Grunt 7 | . 5 2 . Sentry 1 | . . 1 . Best Kill Streak 4 | 4 4 2 3 Combat Bots Only 3 | . 2 1 3 Max Kills in Single Turn 1 | 1 1 1 1 Gunslinging . | . . . . Exploded 1 | . . 1 . Melee . | . . . . Uniques/NPCs Destroyed . | . . . . Combat | -11 -10 -9 -8 -------- Run | Yrd Mat Mat Mat Hostile Shots Fired 122 | . 25 43 54 Missed 43 | . 4 18 21 Damage Taken 1198 | . 246 349 603 Core 312 | . 69 69 174 Absorbed by Shields . | . . . . Core Remaining (%) 84 | 100 72 82 . Volleys Fired 63 | 17 31 11 4 Largest 2 | 2 2 2 1 Hottest 90 | 90 90 90 63 Shots Fired 118 | 33 62 19 4 Gun 113 | 33 62 14 4 Cannon . | . . . . Launcher 5 | . . 5 . Special . | . . . . Kinetic . | . . . . Thermal 59 | 16 31 8 4 Explosive 5 | . . 5 . Electromagnetic 54 | 17 31 6 . Robot Hit Streak 12 | 8 12 4 4 Robot Miss Streak 3 | 3 3 3 . Penetration Max . | . . . . Secondary Targets . | . . . . Shots Hit Robots 69 | 17 39 9 4 Core Hits 36 | 8 15 10 3 Critical Kills . | . . . . Critical Parts Destroyed . | . . . . Critical Strikes 4 | 2 1 1 . Burn 4 | 2 1 1 . Melee Attacks . | . . . . Impact . | . . . . Slashing . | . . . . Piercing . | . . . . Sneak Attacks . | . . . . Combat Hostiles . | . . . . Follow-up Attacks . | . . . . Damage Inflicted 1240 | 214 569 391 66 Guns 932 | 214 564 88 66 Cannons . | . . . . Explosions 303 | . . 303 . Melee . | . . . . Ramming 5 | . 5 . . Kinetic . | . . . . Thermal 499 | 74 267 92 66 Explosive 262 | . . 262 . Electromagnetic 474 | 140 297 37 . Impact . | . . . . Slashing . | . . . . Piercing . | . . . . Highest Corruption . | . . . . Average Corruption . | . . . . Corruption Purged . | . . . . Corruption Blocked . | . . . . Overload Shots . | . . . . Overflow Damage 14 | . . 14 . Projectiles . | . . . . Explosions 14 | . . 14 . Melee . | . . . . Knockbacks . | . . . . Impact . | . . . . Kinetic . | . . . . Secondary . | . . . . Self-Inflicted Damage 40 | . 2 38 . Shots 2 | . . 2 . Rammed 3 | . 3 . . Targets Rammed 3 | . 3 . . Kicked . | . . . . Crushed . | . . . . Highest Temperature 345 | 320 345 63 . Average Temperature 107 | 128 114 22 . Received Heat Transfer 363 | . 138 135 90 Siege Activations . | . . . . Robots Corrupted . | . . . . Combat Hostiles . | . . . . Parts Fried 2 | 1 1 . . Impact Corruptions . | . . . . Robots Melted . | . . . . Combat Hostiles . | . . . . Parts Melted 6 | . 3 2 1 Heat Transferred 1641 | 370 851 272 148 Parts Sabotaged . | . . . . Parts Stolen . | . . . . Parts Stripped . | . . . . Power Chain Reactions 1 | . . 1 . Alert | -11 -10 -9 -8 ------- Run | Yrd Mat Mat Mat Peak Influence 172 | 35 126 163 172 Initial 57 | . 22 52 57 Average 69 | 15 55 95 81 Maximum Alert Level . | . . . . Low Security (%) 100 | 100 100 100 100 Level 1 . | . . . . Level 2 . | . . . . Level 3 . | . . . . Level 4 . | . . . . Level 5 . | . . . . High Security . | . . . . Max Security . | . . . . Squads Dispatched 6 | . 2 3 1 Investigation 1 | . 1 . . Extermination . | . . . . Reinforcement 5 | . 1 3 1 Assault . | . . . . Garrison . | . . . . Intercept . | . . . . Searches Triggered . | . . . . Construction Impeded 1 | . . 1 . Haulers Reinforced . | . . . . Active Scanning Responses . | . . . . Cargo Convoy Interrupts . | . . . . Stealth | -11 -10 -9 -8 --------- Run | Yrd Mat Mat Mat Distress Signals 1 | . . 1 . Communications Jammed . | . . . . Distress Signals . | . . . . Times Spotted 47 | . 11 22 14 Peak Tracking Total 9 | . 2 9 7 Tactical Retreats 9 | . 1 6 2 Traps | -11 -10 -9 -8 ------- Run | Yrd Mat Mat Mat Traps Triggered 1 | . 1 . . Indirectly . | . . . . Trap Hack Attempts . | . . . . Triggered . | . . . . Disarmed . | . . . . Reprogrammed . | . . . . Reused . | . . . . Traps Extracted . | . . . . Installed . | . . . . Triggered . | . . . . Machines | -11 -10 -9 -8 ---------- Run | Yrd Mat Mat Mat Machines Disabled 2 | . . 2 . Max in Single Turn 2 | . . 2 . Machines Repaired . | . . . . Machines Dismantled . | . . . . Machines Sabotaged . | . . . . Overloaded Fab Kills . | . . . . Hacking | -11 -10 -9 -8 --------- Run | Yrd Mat Mat Mat Machines Accessed 3 | . 2 1 . Terminals 3 | . 2 1 . Fabricators . | . . . . Repair Stations . | . . . . Recycling Units . | . . . . Scanalyzers . | . . . . Garrison Access . | . . . . Total Hacks 7 | . 4 3 . Successful 3 | . 1 2 . Failed 4 | . 3 1 . Catastrophic 1 | . 1 . . Database Lockouts . | . . . . Manual 4 | . 4 . . Terminals 7 | . 4 3 . Fabricators . | . . . . Repair Stations . | . . . . Recycling Units . | . . . . Scanalyzers . | . . . . Garrison Access . | . . . . Terminal Hacks 3 | . 1 2 . Robot Analysis 1 | . 1 . . Alert Level 1 | . . 1 . Unreport Threat 1 | . . 1 . Fabricator Hacks . | . . . . Repair Station Hacks . | . . . . Recycling Unit Hacks . | . . . . Scanalyzer . | . . . . Garrison Access Hacks . | . . . . Unauthorized Hacks . | . . . . Terminals . | . . . . Fabricators . | . . . . Repair Stations . | . . . . Recycling Units . | . . . . Scanalyzers . | . . . . Garrison Access . | . . . . Data Cores Recovered . | . . . . Used . | . . . . Hacking Detections 2 | . 2 . . Full Trace Events . | . . . . Feedback Events . | . . . . Feedback Blocked . | . . . . Robot Schematics Acquired . | . . . . Robots Built . | . . . . Authchips . | . . . . Time . | . . . . Total Robot Build Rating . | . . . . Part Schematics Acquired . | . . . . Parts Built . | . . . . Authchips . | . . . . Time . | . . . . Total Part Build Rating . | . . . . Parts Repaired . | . . . . Time . | . . . . Parts Recycled . | . . . . Recycled Matter . | . . . . Retrieved Matter . | . . . . Retrieved Components . | . . . . Parts Scanalyzed . | . . . . Part Schematics Acquired . | . . . . Parts Damaged . | . . . . Bothacking | -11 -10 -9 -8 ------------ Run | Yrd Mat Mat Mat Used RIF Installer . | . . . . Robots Hacked . | . . . . Non-combat . | . . . . Combat . | . . . . Robot Hacks Applied . | . . . . Relay Couplers Released . | . . . . Fabnet Peak Effective % . | . . . . Robots Rewired . | . . . . Allies Hacked . | . . . . Hacks Repelled . | . . . . Allies | -11 -10 -9 -8 -------- Run | Yrd Mat Mat Mat Total Allies . | . . . . Largest Group . | . . . . Highest-Rated Group . | . . . . Highest-Rated Ally . | . . . . Total Orders . | . . . . Ally Attacks . | . . . . Total Damage . | . . . . Kills . | . . . . Allies Corrupted . | . . . . Allies Melted . | . . . . Intel | -11 -10 -9 -8 ------- Run | Yrd Mat Mat Mat Robot Analysis Total 1 | . 1 . . Derelict Logs Recovered . | . . . . Drone Launches . | . . . . Drone Recoveries . | . . . . Exploration | -11 -10 -9 -8 ------------- Run | Yrd Mat Mat Mat Turns Passed 1696 | 173 700 663 160 Spaces Moved 1375 | 111 515 608 141 Core 3 | 2 . . 1 Treads . | . . . . Legs . | . . . . Wheels 1372 | 109 515 608 140 Hover . | . . . . Flight . | . . . . Fastest Speed 50 | 50 80 86 95 Average Speed 92 | 94 93 89 99 Slowest Speed 400 | 100 110 110 400 Overloaded Moves . | . . . . Propulsion Burnouts . | . . . . Robots Hopped . | . . . . Cave-ins Triggered . | . . . . Exploration Rate (%) 30 | 4 58 44 15 Regions Visited 3 Branch Regions . Pre-discovered Areas . | . . . . Known Exits Taken . | . . . . Unknown Exits Taken 3 | 1 1 1 . Scrap Searched . | . . . . Spaces Dug 14 | . . 14 . Terrain Destroyed 35 | . . 35 . Melee . | . . . . Projectile . | . . . . AOE 35 | . . 35 . Terrain Rammed . | . . . . Walls Destroyed . | . . . . Machines Disabled . | . . . . Actions | -11 -10 -9 -8 --------- Run | Yrd Mat Mat Mat Total 1675 | 141 672 708 154 Wait 187 | 1 102 82 2 Move 1372 | 110 514 607 141 Hop . | . . . . Pick Up 13 | 3 8 1 1 Fast Attach 13 | 7 1 1 4 Attach 3 | . . 2 1 Detach . | . . . . Swap 15 | 3 8 3 1 Drop 6 | . 5 1 . Fire 63 | 17 31 11 4 Melee . | . . . . Ram 3 | . 3 . . Kick . | . . . . Crush . | . . . . Escape Stasis . | . . . . Rewire . | . . . . Trap . | . . . . Miscellaneous . | . . . . Route ------- -11/Scrapyard -10/Materials (discovered 2 exits: *Mat x2) -9/Materials -8/Materials History --------- Turn | Location | Event 15 | -11/Scrapyard | Discovered new exit (range 15) 174 | -11/Scrapyard | Entered Materials 306 | -10/Materials | Build established: Mutant 597 | -10/Materials | Discovered new exit (range 10) 825 | -10/Materials | Discovered new exit (range 10) 874 | -10/Materials | Entered another Materials area 874 | -9/Materials | Evolved 2 slots: Propulsion x1, Utility x1 1533 | -9/Materials | Discovered new exit (range 4) 1537 | -9/Materials | Entered another Materials area 1537 | -8/Materials | Evolved 2 slots: Propulsion x1, Utility x1 1697 | -8/Materials | Self-destructed Last Messages --------------- 01652_ S-10 Pest destroyed. 01656_ Flight Unit melted. 01656_ S-10 Pest destroyed. 01660_ Acquired 13 matter. 01661_ Acquired Lgt. Ion Engine. 01663_ K-01 Serf collects debris. 01667_ Penetrated by Slug. 01674_ Hacking Suite destroyed. 01674_ Acquired Com. Matter Pod. 01676_ Slug penetrates S-10 Pest. 01676_ S-10 Pest destroyed. 01679_ Penetrated by Slug. 01679_ Lgt. Ion Engine destroyed. 01680_ Arm. Wheel destroyed. 01688_ Slug penetrates Wall. 01692_ Penetrated by Slug. 01692_ Pulse Rifle destroyed. 01692_ Com. Wheel destroyed. 01695_ Penetrated by Slug. 01697_ Slug penetrates Wall. Map ----- +----------------------------------------------------+ | ??????????????????????????????????????????????? | | ??????????????????????????????????????????????? | | ??????????????????????????????????????????????? | | ??????????????????????????????????????????????? | | ??????????????????????????????????????????????? | | ??????????????????????????????????????????????? | | ??????????????????????????????????????????????? | | ??????????????????????????????????????????????? | | ??????????????????????????????????????????????? | | ??????????????????????????????????????????????? | | ???????????????????? ????????????????????????? | | ??????????????????? ???? ???????????????????? | | ??????????????????? ????! ????????????????? | | ??????????????????? ??? ??????????????? | | ???????????????????# """ ]]???????????????? | | ???????????????????# """g ]]???????????????? | | ???????????????????# """g ]]???????????????? | | ???????????????????# ????????????????? | | ???????????????????# ????????????????? | | ???????????????????# """????????????????? | | ???????????# ??????# l """????????????????? | | ???????????# "????# !! """ ?????????? | | ???????????? ??# !! """ k ??????????? | | ????????????? """ # w ??????????????? | | ??????????????""" ; ] ??????????????????? | | ???????????????????# @k#?????????????????????? | | ???????????????????# #?????????????????????? | | ???????????#??????## #?????????????????????? | | ???????????# ###### #?????????????????????? | | ???????????# #?????????????????????? | | ???????????+ #?????????????????????? | | ???????????# #?????????????????????? | | ???????????# #?????????????????????? | | ???????????# ###?????????????????????? | | ???????????+ xx#???????????????????????? | | ???????????########## #???????????????????????? | | ????????????????????# #???????????????????????? | | ????????????????????# #???????????????????????? | | ????????????????????# #???????????????????????? | | ??????????????#######+##??????????????????????? | | ??????????????# #??????????????????????? | | ??????????????#! """ #??????????????????????? | | ??????????????# """H #??????????????????????? | | ??????????????# """%[ #??????????????????????? | | ??????????????# = #??????????????????????? | | #########?????# """ #??????????????????????? | | # #?????# """ #??????????????????????? | | # #?????# """ #??????????????????????? | | # ####### = #??????????????????????? | | # # ###+#########???????????????????? | +----------------------------------------------------+ Best States ------------- Heat Dissipation 31 Energy Generation 12 Energy Capacity 265 Matter Stores 300 Matter Capacity 450 Sight Range 16 Robot Scan Range 14 Terrain Scan Range 16 Terrain Scan Density 10 Evasion (%) 44 Targeting Accuracy 5 Offensive Hacking 10 Item Schematics ----------------- None Robot Schematics ------------------ None Fabricated ------------ Nothing Alien Tech Used ----------------- None Achievements -------------- Everything Is Under Control Challenges ------------ None Game ------ Seed CannonScatterPlating Manual? 0 Play Time 00:14:35 Cumulative 30.7 hours Start 2024.09.09 @ 17:53:04 End 2024.09.09 @ 18:13:02 Sessions 1 Manual Loads 0 Difficulty Rogue Special Mode None Game No. 36 Rogue 36 Adventurer 0 Explorer 0 Win Type - Total 0 Types 0/0/0/0/0/0/0/0/0 Lore% 18 Gallery% 34 Achievement% 24 Wizard Run 0 Options --------- Layout 2 ASCII 0 Keyboard 1 Movement Numpad Keybinds 0 Fullscreen 2 Font 24/Smallcaps Map View 50x44 Zoom Use 0% Tactical HUD 1 Map Filters NONE Filters LOW_CONTRAST(5,20,15) Steam 1 RUN: e1ed05f6-37d7-468a-8647-9168f05e18f5